[Event "Titled Tuesday Blitz December 06 Early 2022"]
[White "Weetik, Vjacheslav"]
[Black "Xu, Yi"]
[WhiteFideId "4153472"]
[BlackFideId "8605564"]
[WhiteElo "2469"]
[BlackElo "2471"]
[Result "1/2-1/2"]
[Round "07"]
[TimeControl "180+1"]
[Date "2022.12.06"]
[WhiteClock "0:00:08"]
[BlackClock "0:00:11"]

1. d4 {[%clk 0:02:58]}  Nf6 {[%clk 0:02:58]} 2. Nf3 {[%clk 0:02:57]}  d5 {[%clk 0:02:58]} 3. c4 {[%clk 0:02:57]}  e6 {[%clk 0:02:58]} 4. g3 {[%clk 0:02:57]}  Bb4+ {[%clk 0:02:57]} 5. Bd2 {[%clk 0:02:56]}  Be7 {[%clk 0:02:58]} 6. Bg2 {[%clk 0:02:56]}  O-O {[%clk 0:02:56]} 7. O-O {[%clk 0:02:57]}  c6 {[%clk 0:02:56]} 8. Na3 {[%clk 0:02:54]}  Ne4 {[%clk 0:02:47]} 9. Be3 {[%clk 0:02:47]}  f5 {[%clk 0:02:45]} 10. Rc1 {[%clk 0:02:41]}  Nd7 {[%clk 0:02:39]} 11. Ne1 {[%clk 0:02:28]}  b6 {[%clk 0:02:28]} 12. cxd5 {[%clk 0:02:15]}  cxd5 {[%clk 0:02:28]} 13. Nb5 {[%clk 0:02:07]}  Ndf6 {[%clk 0:02:26]} 14. Nd3 {[%clk 0:02:04]}  a6 {[%clk 0:02:20]} 15. Nc3 {[%clk 0:01:50]}  Bd6 {[%clk 0:02:21]} 16. Bf4 {[%clk 0:01:49]}  Bxf4 {[%clk 0:02:17]} 17. Nxf4 {[%clk 0:01:47]}  Bd7 {[%clk 0:02:09]} 18. Rc2 {[%clk 0:01:29]}  Qe7 {[%clk 0:02:02]} 19. Nd3 {[%clk 0:01:20]}  Rfc8 {[%clk 0:02:00]} 20. Ne5 {[%clk 0:01:00]}  Be8 {[%clk 0:01:58]} 21. Qd3 {[%clk 0:00:59]}  b5 {[%clk 0:01:54]} 22. Rfc1 {[%clk 0:00:58]}  Nd6 {[%clk 0:01:50]} 23. b3 {[%clk 0:00:53]}  b4 {[%clk 0:01:47]} 24. Nb1 {[%clk 0:00:49]}  Bb5 {[%clk 0:01:45]} 25. Rxc8+ {[%clk 0:00:44]}  Rxc8 {[%clk 0:01:35]} 26. Rxc8+ {[%clk 0:00:44]}  Nxc8 {[%clk 0:01:36]} 27. Qc2 {[%clk 0:00:44]}  Nb6 {[%clk 0:01:25]} 28. e3 {[%clk 0:00:35]}  g5 {[%clk 0:01:22]} 29. Nd2 {[%clk 0:00:33]}  Kg7 {[%clk 0:01:17]} 30. f3 {[%clk 0:00:30]}  Qd6 {[%clk 0:01:13]} 31. h3 {[%clk 0:00:25]}  Nbd7 {[%clk 0:01:01]} 32. f4 {[%clk 0:00:26]}  Ne4 {[%clk 0:00:56]} 33. Nxe4 {[%clk 0:00:19]}  fxe4 {[%clk 0:00:56]} 34. Qc8 {[%clk 0:00:18]}  gxf4 {[%clk 0:00:53]} 35. gxf4 {[%clk 0:00:18]}  Nxe5 {[%clk 0:00:52]} 36. fxe5 {[%clk 0:00:14]}  Qe7 {[%clk 0:00:50]} 37. Kh2 {[%clk 0:00:11]}  h5 {[%clk 0:00:48]} 38. Qc1 {[%clk 0:00:09]}  h4 {[%clk 0:00:47]} 39. Qd1 {[%clk 0:00:09]}  Qg5 {[%clk 0:00:43]} 40. Qc1 {[%clk 0:00:08]}  Qg3+ {[%clk 0:00:40]} 41. Kh1 {[%clk 0:00:08]}  Kg6 {[%clk 0:00:36]} 42. Qc8 {[%clk 0:00:07]}  Qxe3 {[%clk 0:00:22]} 43. Qg8+ {[%clk 0:00:07]}  Kh6 {[%clk 0:00:20]} 44. Qf8+ {[%clk 0:00:06]}  Kh7 {[%clk 0:00:18]} 45. Qf7+ {[%clk 0:00:06]}  Kh8 {[%clk 0:00:18]} 46. Qf8+ {[%clk 0:00:07]}  Kh7 {[%clk 0:00:19]} 47. Qe7+ {[%clk 0:00:07]}  Kh8 {[%clk 0:00:19]} 48. Qxh4+ {[%clk 0:00:07]}  Kg8 {[%clk 0:00:14]} 49. Qd8+ {[%clk 0:00:07]}  Kh7 {[%clk 0:00:12]} 50. Qe7+ {[%clk 0:00:07]}  Kh8 {[%clk 0:00:13]} 51. Qxe6 {[%clk 0:00:07]}  Qc1+ {[%clk 0:00:12]} 52. Kh2 {[%clk 0:00:07]}  Qf4+ {[%clk 0:00:13]} 53. Kh1 {[%clk 0:00:07]}  Qc1+ {[%clk 0:00:11]} 54. Kh2 {[%clk 0:00:08]}  Qf4+ {[%clk 0:00:12]} 55. Kh1 {[%clk 0:00:08]}  Qc1+ {[%clk 0:00:11]} 1/2-1/2


[Site "https://www.chess.com"]

[Event "Titled Tuesday Blitz December 06 Early 2022"]
[White "Wojtaszek, Radoslaw"]
[Black "Riehle, Marco"]
[WhiteFideId "1118358"]
[BlackFideId "12904392"]
[WhiteElo "2605"]
[BlackElo "2462"]
[Result "0-1"]
[Round "07"]
[TimeControl "180+1"]
[Date "2022.12.06"]
[WhiteClock "0:00:31"]
[BlackClock "0:01:11"]

1. e4 {[%clk 0:03:00]}  e5 {[%clk 0:02:59]} 2. Nf3 {[%clk 0:03:00]}  Nf6 {[%clk 0:03:00]} 3. Nxe5 {[%clk 0:02:55]}  Nxe4 {[%clk 0:03:00]} 4. Qf3 {[%clk 0:02:52]}  Qe7 {[%clk 0:03:00]} 5. Qxe4 {[%clk 0:02:51]}  d6 {[%clk 0:03:00]} 6. d4 {[%clk 0:02:51]}  dxe5 {[%clk 0:03:00]} 7. dxe5 {[%clk 0:02:48]}  Nc6 {[%clk 0:03:00]} 8. Bb5 {[%clk 0:02:47]}  Bd7 {[%clk 0:03:00]} 9. Nc3 {[%clk 0:02:46]}  O-O-O {[%clk 0:03:00]} 10. Bf4 {[%clk 0:02:42]}  g5 {[%clk 0:02:58]} 11. Bg3 {[%clk 0:02:41]}  a6 {[%clk 0:02:58]} 12. Ba4 {[%clk 0:02:39]}  Re8 {[%clk 0:02:57]} 13. O-O-O {[%clk 0:02:37]}  f5 {[%clk 0:02:57]} 14. Qc4 {[%clk 0:01:43]}  f4 {[%clk 0:02:45]} 15. Nd5 {[%clk 0:01:42]}  Qxe5 {[%clk 0:02:25]} 16. Rhe1 {[%clk 0:01:16]}  Qxe1 {[%clk 0:02:23]} 17. Rxe1 {[%clk 0:01:16]}  Rxe1+ {[%clk 0:02:23]} 18. Kd2 {[%clk 0:01:17]}  Re6 {[%clk 0:02:03]} 19. Nxf4 {[%clk 0:01:14]}  gxf4 {[%clk 0:02:00]} 20. Bxf4 {[%clk 0:01:15]}  Bh6 {[%clk 0:01:56]} 21. Bxh6 {[%clk 0:01:09]}  Rxh6 {[%clk 0:01:57]} 22. Qf4 {[%clk 0:01:09]}  Rd6+ {[%clk 0:01:55]} 23. Kc3 {[%clk 0:00:56]}  Ne7 {[%clk 0:01:45]} 24. Bxd7+ {[%clk 0:00:54]}  Rxd7 {[%clk 0:01:46]} 25. Kb3 {[%clk 0:00:50]}  Nc6 {[%clk 0:01:32]} 26. c3 {[%clk 0:00:48]}  Re8 {[%clk 0:01:32]} 27. h4 {[%clk 0:00:47]}  Kb8 {[%clk 0:01:31]} 28. g4 {[%clk 0:00:46]}  Re2 {[%clk 0:01:31]} 29. Qf8+ {[%clk 0:00:42]}  Rd8 {[%clk 0:01:29]} 30. Qf5 {[%clk 0:00:42]}  Rdd2 {[%clk 0:01:27]} 31. Qxh7 {[%clk 0:00:40]}  Rxb2+ {[%clk 0:01:26]} 32. Kc4 {[%clk 0:00:40]}  Red2 {[%clk 0:01:20]} 33. Qf5 {[%clk 0:00:32]}  Rb5 {[%clk 0:01:11]} 34. Qf8+ {[%clk 0:00:31]}  Ka7 {[%clk 0:01:11]} 0-1


[Site "https://www.chess.com"]

[Event "Titled Tuesday Blitz December 06 Early 2022"]
[White "Xiong, Jeffery"]
[Black "Le, Tuan Minh"]
[WhiteFideId "2047640"]
[BlackFideId "12401153"]
[WhiteElo "2726"]
[BlackElo "2530"]
[Result "0-1"]
[Round "07"]
[TimeControl "180+1"]
[Date "2022.12.06"]
[WhiteClock "0:00:01"]
[BlackClock "0:00:04"]

1. d4 {[%clk 0:03:00]}  d5 {[%clk 0:02:59]} 2. c4 {[%clk 0:03:01]}  c6 {[%clk 0:02:53]} 3. cxd5 {[%clk 0:02:57]}  cxd5 {[%clk 0:02:51]} 4. Bf4 {[%clk 0:02:57]}  Nf6 {[%clk 0:02:51]} 5. e3 {[%clk 0:02:58]}  Nc6 {[%clk 0:02:52]} 6. Nc3 {[%clk 0:02:58]}  a6 {[%clk 0:02:51]} 7. Rc1 {[%clk 0:02:53]}  Bg4 {[%clk 0:02:49]} 8. Qb3 {[%clk 0:02:53]}  Na5 {[%clk 0:02:48]} 9. Qa4+ {[%clk 0:02:53]}  Bd7 {[%clk 0:02:23]} 10. Qc2 {[%clk 0:02:52]}  Rc8 {[%clk 0:02:23]} 11. Bd3 {[%clk 0:02:52]}  e6 {[%clk 0:02:20]} 12. Nf3 {[%clk 0:02:51]}  b5 {[%clk 0:02:17]} 13. a3 {[%clk 0:02:51]}  Nc4 {[%clk 0:02:13]} 14. O-O {[%clk 0:02:48]}  Be7 {[%clk 0:02:13]} 15. Ne5 {[%clk 0:02:49]}  O-O {[%clk 0:02:09]} 16. Qe2 {[%clk 0:02:19]}  Be8 {[%clk 0:01:53]} 17. a4 {[%clk 0:02:16]}  Nd7 {[%clk 0:01:36]} 18. Nxd7 {[%clk 0:02:03]}  Bxd7 {[%clk 0:01:36]} 19. axb5 {[%clk 0:02:04]}  axb5 {[%clk 0:01:37]} 20. b3 {[%clk 0:01:59]}  Na5 {[%clk 0:01:25]} 21. Nxb5 {[%clk 0:02:00]}  Nxb3 {[%clk 0:01:13]} 22. Rb1 {[%clk 0:01:33]}  Bxb5 {[%clk 0:01:13]} 23. Bxb5 {[%clk 0:01:33]}  Na5 {[%clk 0:01:13]} 24. Ra1 {[%clk 0:01:12]}  Nc4 {[%clk 0:01:09]} 25. Rfc1 {[%clk 0:01:10]}  Nd6 {[%clk 0:01:08]} 26. Bd3 {[%clk 0:01:10]}  Rxc1+ {[%clk 0:01:08]} 27. Rxc1 {[%clk 0:01:11]}  Qb8 {[%clk 0:01:03]} 28. Qc2 {[%clk 0:01:08]}  h6 {[%clk 0:00:50]} 29. Qc7 {[%clk 0:01:06]}  Qb2 {[%clk 0:00:17]} 30. Rf1 {[%clk 0:00:55]}  Nc8 {[%clk 0:00:13]} 31. Rb1 {[%clk 0:00:29]}  Qa3 {[%clk 0:00:11]} 32. Qc2 {[%clk 0:00:18]}  Bd6 {[%clk 0:00:11]} 33. Bg3 {[%clk 0:00:11]}  Bxg3 {[%clk 0:00:12]} 34. hxg3 {[%clk 0:00:12]}  Nd6 {[%clk 0:00:12]} 35. Qb3 {[%clk 0:00:12]}  Qxb3 {[%clk 0:00:10]} 36. Rxb3 {[%clk 0:00:12]}  g6 {[%clk 0:00:10]} 37. Rb6 {[%clk 0:00:12]}  Rd8 {[%clk 0:00:11]} 38. g4 {[%clk 0:00:11]}  Kg7 {[%clk 0:00:11]} 39. Kh2 {[%clk 0:00:12]}  Ne8 {[%clk 0:00:11]} 40. Kg3 {[%clk 0:00:12]}  Nf6 {[%clk 0:00:12]} 41. Rb7 {[%clk 0:00:11]}  Rc8 {[%clk 0:00:11]} 42. Kf3 {[%clk 0:00:08]}  Rc3 {[%clk 0:00:10]} 43. Bb1 {[%clk 0:00:08]}  Ra3 {[%clk 0:00:08]} 44. Rb2 {[%clk 0:00:07]}  Nh7 {[%clk 0:00:08]} 45. Ke2 {[%clk 0:00:06]}  Nf6 {[%clk 0:00:08]} 46. f3 {[%clk 0:00:05]}  h5 {[%clk 0:00:09]} 47. gxh5 {[%clk 0:00:05]}  Nxh5 {[%clk 0:00:09]} 48. Kf2 {[%clk 0:00:06]}  Nf6 {[%clk 0:00:09]} 49. Bc2 {[%clk 0:00:06]}  Ne8 {[%clk 0:00:09]} 50. Bd1 {[%clk 0:00:06]}  Nd6 {[%clk 0:00:10]} 51. Re2 {[%clk 0:00:06]}  Nb5 {[%clk 0:00:09]} 52. Bc2 {[%clk 0:00:05]}  Nd6 {[%clk 0:00:09]} 53. Rd2 {[%clk 0:00:04]}  Kf6 {[%clk 0:00:07]} 54. Bd3 {[%clk 0:00:05]}  Ke7 {[%clk 0:00:08]} 55. g4 {[%clk 0:00:05]}  g5 {[%clk 0:00:06]} 56. f4 {[%clk 0:00:05]}  Kf6 {[%clk 0:00:06]} 57. Ke2 {[%clk 0:00:03]}  Ra1 {[%clk 0:00:06]} 58. Rb2 {[%clk 0:00:03]}  Ne8 {[%clk 0:00:04]} 59. Kf3 {[%clk 0:00:03]}  Ra3 {[%clk 0:00:04]} 60. Rd2 {[%clk 0:00:02]}  Nd6 {[%clk 0:00:04]} 61. Ke2 {[%clk 0:00:03]}  Ne4 {[%clk 0:00:03]} 62. Bxe4 {[%clk 0:00:03]}  dxe4 {[%clk 0:00:04]} 63. fxg5+ {[%clk 0:00:02]}  Kxg5 {[%clk 0:00:05]} 64. d5 {[%clk 0:00:02]}  exd5 {[%clk 0:00:02]} 65. Rxd5+ {[%clk 0:00:03]}  Kxg4 {[%clk 0:00:03]} 66. Rd2 {[%clk 0:00:02]}  f5 {[%clk 0:00:03]} 67. Kf2 {[%clk 0:00:02]}  Rb3 {[%clk 0:00:03]} 68. Rc2 {[%clk 0:00:02]}  Ra3 {[%clk 0:00:03]} 69. Rb2 {[%clk 0:00:02]}  Ra8 {[%clk 0:00:04]} 70. Rc2 {[%clk 0:00:02]}  Kh3 {[%clk 0:00:04]} 71. Rc5 {[%clk 0:00:01]}  Ra2+ {[%clk 0:00:04]} 72. Ke1 {[%clk 0:00:01]}  Kg4 {[%clk 0:00:05]} 73. Rb5 {[%clk 0:00:02]}  Rh2 {[%clk 0:00:04]} 74. Kf1 {[%clk 0:00:02]}  Rc2 {[%clk 0:00:04]} 75. Ke1 {[%clk 0:00:02]}  Ra2 {[%clk 0:00:04]} 76. Kf1 {[%clk 0:00:02]}  Kf3 {[%clk 0:00:05]} 77. Rxf5+ {[%clk 0:00:02]}  Kxe3 {[%clk 0:00:05]} 78. Rf8 {[%clk 0:00:02]}  Ra1+ {[%clk 0:00:06]} 79. Kg2 {[%clk 0:00:02]}  Ra2+ {[%clk 0:00:06]} 80. Kg1 {[%clk 0:00:02]}  Ra1+ {[%clk 0:00:06]} 81. Kg2 {[%clk 0:00:03]}  Kd3 {[%clk 0:00:06]} 82. Rd8+ {[%clk 0:00:03]}  Ke2 {[%clk 0:00:07]} 83. Rb8 {[%clk 0:00:02]}  Rd1 {[%clk 0:00:06]} 84. Rb2+ {[%clk 0:00:02]}  Rd2 {[%clk 0:00:06]} 85. Rb1 {[%clk 0:00:03]}  e3 {[%clk 0:00:06]} 86. Kg3 {[%clk 0:00:02]}  Ra2 {[%clk 0:00:06]} 87. Kg2 {[%clk 0:00:01]}  Kd3+ {[%clk 0:00:05]} 88. Kf3 {[%clk 0:00:02]}  Rf2+ {[%clk 0:00:06]} 89. Kg3 {[%clk 0:00:02]}  Rf8 {[%clk 0:00:06]} 90. Rb3+ {[%clk 0:00:01]}  Kd4 {[%clk 0:00:07]} 91. Rb4+ {[%clk 0:00:01]}  Kc3 {[%clk 0:00:08]} 92. Rb1 {[%clk 0:00:01]}  e2 {[%clk 0:00:08]} 93. Ra1 {[%clk 0:00:01]}  Ra8 {[%clk 0:00:04]} 0-1


[Site "https://www.chess.com"]

[Event "Titled Tuesday Blitz December 06 Early 2022"]
[White "Zemlyanskii, Ivan"]
[Black "Darini, Pouria"]
[WhiteFideId "24249971"]
[BlackFideId "12502200"]
[WhiteElo "2107"]
[BlackElo "2482"]
[Result "1-0"]
[Round "07"]
[TimeControl "180+1"]
[Date "2022.12.06"]
[WhiteClock "0:00:28"]
[BlackClock "0:00:05"]

1. d4 {[%clk 0:03:00]}  Nf6 {[%clk 0:02:59]} 2. c4 {[%clk 0:03:01]}  e6 {[%clk 0:03:00]} 3. Nf3 {[%clk 0:03:02]}  d5 {[%clk 0:02:56]} 4. g3 {[%clk 0:03:02]}  Bb4+ {[%clk 0:02:52]} 5. Bd2 {[%clk 0:03:02]}  Be7 {[%clk 0:02:51]} 6. Bg2 {[%clk 0:03:02]}  O-O {[%clk 0:02:51]} 7. Qc2 {[%clk 0:03:02]}  c6 {[%clk 0:02:47]} 8. O-O {[%clk 0:03:02]}  Nbd7 {[%clk 0:02:47]} 9. Bf4 {[%clk 0:02:55]}  b6 {[%clk 0:02:32]} 10. Nbd2 {[%clk 0:02:54]}  Bb7 {[%clk 0:02:30]} 11. e4 {[%clk 0:02:53]}  c5 {[%clk 0:02:27]} 12. exd5 {[%clk 0:02:40]}  exd5 {[%clk 0:02:27]} 13. Rfd1 {[%clk 0:02:39]}  Rc8 {[%clk 0:02:24]} 14. Qf5 {[%clk 0:02:38]}  cxd4 {[%clk 0:02:05]} 15. Nxd4 {[%clk 0:02:32]}  Nc5 {[%clk 0:02:05]} 16. N2b3 {[%clk 0:01:54]}  dxc4 {[%clk 0:01:31]} 17. Bxb7 {[%clk 0:01:53]}  Nxb7 {[%clk 0:01:32]} 18. Ne6 {[%clk 0:01:51]}  Qe8 {[%clk 0:01:10]} 19. Nxf8 {[%clk 0:01:49]}  cxb3 {[%clk 0:01:10]} 20. Nd7 {[%clk 0:01:49]}  bxa2 {[%clk 0:00:58]} 21. Nxf6+ {[%clk 0:01:41]}  Bxf6 {[%clk 0:00:58]} 22. Rxa2 {[%clk 0:01:42]}  Na5 {[%clk 0:00:42]} 23. b4 {[%clk 0:01:34]}  Nc6 {[%clk 0:00:42]} 24. Re2 {[%clk 0:01:33]}  Qf8 {[%clk 0:00:36]} 25. Red2 {[%clk 0:01:13]}  Re8 {[%clk 0:00:17]} 26. b5 {[%clk 0:01:02]}  Ne7 {[%clk 0:00:18]} 27. Qd7 {[%clk 0:00:58]}  Ng6 {[%clk 0:00:18]} 28. Bd6 {[%clk 0:00:57]}  Be7 {[%clk 0:00:18]} 29. Qxa7 {[%clk 0:00:51]}  Bxd6 {[%clk 0:00:14]} 30. Rxd6 {[%clk 0:00:52]}  h5 {[%clk 0:00:10]} 31. Qxb6 {[%clk 0:00:47]}  Qe7 {[%clk 0:00:10]} 32. Rd8 {[%clk 0:00:45]}  Kh7 {[%clk 0:00:10]} 33. Rxe8 {[%clk 0:00:45]}  Qxe8 {[%clk 0:00:11]} 34. Qc6 {[%clk 0:00:46]}  Ne5 {[%clk 0:00:11]} 35. Qe4+ {[%clk 0:00:45]}  f5 {[%clk 0:00:09]} 36. Qxf5+ {[%clk 0:00:45]}  g6 {[%clk 0:00:10]} 37. Qe4 {[%clk 0:00:36]}  Qb8 {[%clk 0:00:08]} 38. Rd5 {[%clk 0:00:33]}  Ng4 {[%clk 0:00:07]} 39. h3 {[%clk 0:00:30]}  Nxf2 {[%clk 0:00:06]} 40. Rd7+ {[%clk 0:00:28]}  Kh6 {[%clk 0:00:05]} 41. Qe3+ {[%clk 0:00:28]} 1-0


[Site "https://www.chess.com"]

[Event "Titled Tuesday Blitz December 06 Early 2022"]
[White "sabkeIXO"]
[Black "Muminova, Nafisa"]
[BlackFideId "14201526"]
[WhiteElo "2490"]
[BlackElo "2355"]
[Result "0-1"]
[Round "07"]
[TimeControl "180+1"]
[Date "2022.12.07"]
[WhiteClock "0:00:09"]
[BlackClock "0:00:21"]

1. e4 {[%clk 0:03:00]}  e6 {[%clk 0:02:59]} 2. d4 {[%clk 0:03:00]}  d5 {[%clk 0:02:59]} 3. e5 {[%clk 0:03:01]}  c5 {[%clk 0:02:59]} 4. c3 {[%clk 0:03:01]}  Nc6 {[%clk 0:02:59]} 5. Nf3 {[%clk 0:03:01]}  Qb6 {[%clk 0:02:45]} 6. Bd3 {[%clk 0:03:00]}  cxd4 {[%clk 0:02:41]} 7. O-O {[%clk 0:03:00]}  Bd7 {[%clk 0:02:36]} 8. Nbd2 {[%clk 0:03:00]}  dxc3 {[%clk 0:02:29]} 9. bxc3 {[%clk 0:03:00]}  Nge7 {[%clk 0:02:26]} 10. Rb1 {[%clk 0:02:59]}  Qc7 {[%clk 0:02:26]} 11. Qe2 {[%clk 0:02:59]}  Ng6 {[%clk 0:02:24]} 12. Nb3 {[%clk 0:02:26]}  Ncxe5 {[%clk 0:02:15]} 13. Nxe5 {[%clk 0:02:17]}  Qxe5 {[%clk 0:02:13]} 14. Qd2 {[%clk 0:01:57]}  Bd6 {[%clk 0:01:56]} 15. g3 {[%clk 0:01:58]}  O-O {[%clk 0:01:49]} 16. Bb2 {[%clk 0:01:58]}  Qh5 {[%clk 0:01:45]} 17. Rbe1 {[%clk 0:01:45]}  e5 {[%clk 0:01:40]} 18. Bxg6 {[%clk 0:01:36]}  hxg6 {[%clk 0:01:27]} 19. Qxd5 {[%clk 0:01:20]}  Bc6 {[%clk 0:01:25]} 20. Qd3 {[%clk 0:01:19]}  Rad8 {[%clk 0:01:02]} 21. Qe3 {[%clk 0:00:44]}  Bc7 {[%clk 0:00:44]} 22. c4 {[%clk 0:00:40]}  a5 {[%clk 0:00:37]} 23. Nc1 {[%clk 0:00:24]}  Bf3 {[%clk 0:00:34]} 24. h3 {[%clk 0:00:10]}  e4 {[%clk 0:00:31]} 25. Kh2 {[%clk 0:00:10]}  Bg4 {[%clk 0:00:30]} 26. h4 {[%clk 0:00:10]}  Qxh4+ {[%clk 0:00:30]} 27. Kg1 {[%clk 0:00:09]}  Qh5 {[%clk 0:00:25]} 28. f4 {[%clk 0:00:09]}  exf3 {[%clk 0:00:22]} 29. Qc3 {[%clk 0:00:09]}  f6 {[%clk 0:00:21]} 30. Rf2 {[%clk 0:00:09]}  Bxg3 {[%clk 0:00:21]} 0-1


[Site "https://www.chess.com"]

[Event "Titled Tuesday Blitz December 06 Early 2022"]
[White "tufferguy"]
[Black "Lenderman, Aleksandr"]
[BlackFideId "2021285"]
[WhiteElo "2691"]
[BlackElo "2607"]
[Result "0-1"]
[Round "07"]
[TimeControl "180+1"]
[Date "2022.12.06"]
[WhiteClock "0:00:01"]
[BlackClock "0:01:12"]

1. e4 {[%clk 0:03:00]}  e6 {[%clk 0:03:00]} 2. d4 {[%clk 0:02:59]}  d5 {[%clk 0:02:59]} 3. Bd3 {[%clk 0:03:00]}  c5 {[%clk 0:02:57]} 4. exd5 {[%clk 0:02:56]}  exd5 {[%clk 0:02:58]} 5. c3 {[%clk 0:02:56]}  Nc6 {[%clk 0:02:57]} 6. Nf3 {[%clk 0:02:55]}  Bd6 {[%clk 0:02:58]} 7. dxc5 {[%clk 0:02:54]}  Bxc5 {[%clk 0:02:58]} 8. O-O {[%clk 0:02:55]}  Nge7 {[%clk 0:02:58]} 9. Nbd2 {[%clk 0:02:54]}  O-O {[%clk 0:02:57]} 10. Nb3 {[%clk 0:02:53]}  Bb6 {[%clk 0:02:58]} 11. Re1 {[%clk 0:02:52]}  Ng6 {[%clk 0:02:54]} 12. Be3 {[%clk 0:02:39]}  Bc7 {[%clk 0:02:47]} 13. Bc5 {[%clk 0:02:30]}  Re8 {[%clk 0:02:44]} 14. Bb5 {[%clk 0:02:17]}  Rxe1+ {[%clk 0:02:40]} 15. Qxe1 {[%clk 0:02:18]}  Bg4 {[%clk 0:02:39]} 16. Nbd4 {[%clk 0:02:03]}  Qf6 {[%clk 0:02:37]} 17. h3 {[%clk 0:01:12]}  Bd7 {[%clk 0:02:32]} 18. Qd2 {[%clk 0:00:46]}  Nf4 {[%clk 0:02:30]} 19. Bf1 {[%clk 0:00:31]}  Qg6 {[%clk 0:02:17]} 20. Kh1 {[%clk 0:00:29]}  Qh5 {[%clk 0:02:16]} 21. Nxc6 {[%clk 0:00:15]}  bxc6 {[%clk 0:02:14]} 22. Qd1 {[%clk 0:00:13]}  Bg4 {[%clk 0:02:07]} 23. Be2 {[%clk 0:00:12]}  Re8 {[%clk 0:02:05]} 24. Be3 {[%clk 0:00:05]}  Nxg2 {[%clk 0:01:56]} 25. Kxg2 {[%clk 0:00:04]}  Qxh3+ {[%clk 0:01:33]} 26. Kg1 {[%clk 0:00:04]}  Bxf3 {[%clk 0:01:29]} 27. Bxf3 {[%clk 0:00:05]}  Bh2+ {[%clk 0:01:22]} 28. Kh1 {[%clk 0:00:05]}  Rxe3 {[%clk 0:01:17]} 29. Bg2 {[%clk 0:00:04]}  Qh4 {[%clk 0:01:12]} 30. fxe3 {[%clk 0:00:04]}  Bf4+ {[%clk 0:01:12]} 31. Kg1 {[%clk 0:00:04]}  Bxe3+ {[%clk 0:01:12]} 32. Kf1 {[%clk 0:00:01]}  Qf2# {[%clk 0:01:12]} 0-1


[Site "https://www.chess.com"]

[Event "Titled Tuesday Blitz December 06 Early 2022"]
[White "Acor, Corey"]
[Black "Aldokhin, Ivan"]
[WhiteFideId "2024861"]
[BlackFideId "24115720"]
[WhiteElo "2341"]
[BlackElo "2313"]
[Result "1-0"]
[Round "08"]
[TimeControl "180+1"]
[Date "2022.12.07"]
[WhiteClock "0:00:27"]
[BlackClock "0:00:01"]

1. e4 {[%clk 0:03:00]}  c5 {[%clk 0:02:59]} 2. Nc3 {[%clk 0:03:00]}  e6 {[%clk 0:03:00]} 3. g3 {[%clk 0:03:01]}  Nc6 {[%clk 0:03:00]} 4. Bg2 {[%clk 0:03:01]}  g6 {[%clk 0:03:00]} 5. d3 {[%clk 0:03:01]}  Bg7 {[%clk 0:03:01]} 6. Be3 {[%clk 0:03:02]}  b6 {[%clk 0:02:59]} 7. Qd2 {[%clk 0:02:59]}  Nd4 {[%clk 0:02:55]} 8. e5 {[%clk 0:02:53]}  Rb8 {[%clk 0:02:48]} 9. f4 {[%clk 0:02:42]}  Bb7 {[%clk 0:02:43]} 10. Bxd4 {[%clk 0:02:38]}  cxd4 {[%clk 0:02:41]} 11. Nb5 {[%clk 0:02:37]}  d5 {[%clk 0:02:23]} 12. Nd6+ {[%clk 0:02:18]}  Kf8 {[%clk 0:02:22]} 13. Nf3 {[%clk 0:02:17]}  f6 {[%clk 0:02:09]} 14. Nxb7 {[%clk 0:02:13]}  Rxb7 {[%clk 0:02:09]} 15. Nxd4 {[%clk 0:02:10]}  Qe8 {[%clk 0:01:51]} 16. O-O {[%clk 0:02:05]}  Rf7 {[%clk 0:01:45]} 17. Qb4+ {[%clk 0:02:00]}  Re7 {[%clk 0:01:42]} 18. Nxe6+ {[%clk 0:02:00]}  Kf7 {[%clk 0:01:42]} 19. Bxd5 {[%clk 0:01:44]}  Rxe6 {[%clk 0:01:39]} 20. exf6 {[%clk 0:01:41]}  Nxf6 {[%clk 0:01:39]} 21. Bb3 {[%clk 0:01:29]}  Qc6 {[%clk 0:01:33]} 22. Rae1 {[%clk 0:01:25]}  Re8 {[%clk 0:01:07]} 23. Qc4 {[%clk 0:01:11]}  Qxc4 {[%clk 0:00:34]} 24. Bxc4 {[%clk 0:01:12]}  Nd7 {[%clk 0:00:30]} 25. Rxe6 {[%clk 0:01:05]}  Rxe6 {[%clk 0:00:30]} 26. Re1 {[%clk 0:00:49]}  Nf8 {[%clk 0:00:30]} 27. c3 {[%clk 0:00:40]}  Kf6 {[%clk 0:00:28]} 28. Bxe6 {[%clk 0:00:40]}  Nxe6 {[%clk 0:00:29]} 29. d4 {[%clk 0:00:41]}  g5 {[%clk 0:00:22]} 30. fxg5+ {[%clk 0:00:38]}  Nxg5 {[%clk 0:00:22]} 31. Re8 {[%clk 0:00:36]}  Nf3+ {[%clk 0:00:17]} 32. Kg2 {[%clk 0:00:36]}  Nd2 {[%clk 0:00:18]} 33. Ra8 {[%clk 0:00:34]}  Nc4 {[%clk 0:00:14]} 34. b3 {[%clk 0:00:33]}  Ne3+ {[%clk 0:00:12]} 35. Kf3 {[%clk 0:00:34]}  Nd1 {[%clk 0:00:12]} 36. c4 {[%clk 0:00:33]}  Kg6 {[%clk 0:00:11]} 37. d5 {[%clk 0:00:32]}  Kf6 {[%clk 0:00:03]} 38. Rxa7 {[%clk 0:00:32]}  h5 {[%clk 0:00:03]} 39. Rb7 {[%clk 0:00:31]}  Bf8 {[%clk 0:00:03]} 40. Rxb6+ {[%clk 0:00:31]}  Kf5 {[%clk 0:00:04]} 41. h3 {[%clk 0:00:30]}  Nb2 {[%clk 0:00:03]} 42. g4+ {[%clk 0:00:30]}  hxg4+ {[%clk 0:00:03]} 43. hxg4+ {[%clk 0:00:31]}  Ke5 {[%clk 0:00:02]} 44. Re6+ {[%clk 0:00:29]}  Kd4 {[%clk 0:00:02]} 45. d6 {[%clk 0:00:29]}  Nd3 {[%clk 0:00:02]} 46. d7 {[%clk 0:00:29]}  Be7 {[%clk 0:00:01]} 47. Rxe7 {[%clk 0:00:27]} 1-0


[Site "https://www.chess.com"]